fUSD/lending_fUSD_20250108
["ID","MTS","AMOUNT","RATE_DAILY","PERIOD"]
[348133295,1736349048393,-151.0,0.000105,2]
[348133296,1736349048404,-500.0,0.00010527,2]
[348133297,1736349048413,-500.0,0.00010527,2]
[348133298,1736349048423,-150.0,0.00010527,2]
[348133299,1736349048434,-150.0,0.00010527,2]
[348133300,1736349048443,-260.35241381,0.00010527,2]
[348133301,1736349048453,-150.09140942,0.00010527,2]
[348133302,1736349048462,-245.27525467,0.00010527,2]
[348133303,1736349048473,-500.0,0.00010527,2]
[348133304,1736349048483,-150.0,0.00010527,2]
[348133305,1736349048492,-500.0,0.00010527,2]
[348133306,1736349048502,-150.0,0.00010527,2]
[348133307,1736349048512,-266.88775563,0.00010527,2]
[348133308,1736349048522,-500.0,0.00010527,2]
[348133309,1736349048532,-500.0,0.00010532,2]
[348133310,1736349048541,-500.0,0.00010532,2]
[348133311,1736349048551,-500.0,0.00010532,2]
[348133312,1736349048561,-500.0,0.00010532,2]
[348133313,1736349048571,-500.0,0.00010532,2]
[348133314,1736349048581,-500.0,0.00010532,2]
[348133315,1736349048595,-500.0,0.00010532,2]
[348133316,1736349048606,-500.0,0.00010532,2]
[348133317,1736349048615,-500.0,0.00010532,2]
[348133318,1736349048626,-500.0,0.00010532,2]
[348133319,1736349048638,-638.94,0.00010532,2]
[348133320,1736349048648,-775.08,0.00010532,2]
[348133321,1736349048659,-500.0,0.00010532,2]
[348133322,1736349048669,-500.0,0.00010532,2]
[348133323,1736349048679,-500.0,0.00010532,2]
[348133324,1736349048689,-873.19,0.00010532,2]
[348133325,1736349048700,-500.0,0.00010532,2]
[348133326,1736349048711,-598.51,0.00010532,2]
[348133327,1736349048723,-500.0,0.00010532,2]
[348133328,1736349048733,-777.0,0.00010532,2]
[348133329,1736349048743,-851.02,0.00010532,2]
[348133330,1736349048756,-174.78269111,0.00010532,2]
[348133331,1736349048767,-500.0,0.00010532,2]
[348133332,1736349048778,-500.0,0.00010532,2]
[348133333,1736349048788,-500.0,0.00010532,2]
[348133334,1736349048799,-500.0,0.00010532,2]
[348133335,1736349048809,-500.0,0.00010532,2]
[348133336,1736349048819,-500.0,0.00010532,2]
[348133337,1736349048829,-500.0,0.00010532,2]
[348133338,1736349048839,-500.0,0.00010532,2]
[348133339,1736349048849,-630.25,0.00010532,2]
[348133340,1736349048860,-500.0,0.00010532,2]
[348133341,1736349048870,-500.0,0.00010532,2]
[348133342,1736349048880,-616.38,0.00010532,2]
[348133343,1736349048890,-417.84557624,0.00010532,2]
[348133344,1736349048901,-500.0,0.00010532,2]
[348133345,1736349048911,-985.65,0.00010532,2]
[348133346,1736349048921,-500.0,0.00010532,2]
[348133347,1736349048931,-744.19,0.00010532,2]
[348133348,1736349048941,-811.38,0.00010532,2]
[348133349,1736349048950,-500.0,0.00010532,2]
[348133350,1736349048961,-500.0,0.00010532,2]
[348133351,1736349048974,-500.0,0.00010533,2]
[348133352,1736349048984,-500.0,0.00010533,2]
[348133353,1736349048994,-284.59568511,0.00010533,2]
[348133354,1736349049004,-2633.32,0.00010533,2]
[348133355,1736349049014,-500.0,0.00010533,2]
[348133356,1736349049024,-500.0,0.00010533,2]
[348133357,1736349049035,-1212.18,0.00010533,2]
[348133358,1736349049045,-4771.31,0.00010533,2]
[348133359,1736349049055,-3890.61,0.00010533,2]
[348133360,1736349049065,-500.0,0.00010533,2]
[348133361,1736349049075,-500.0,0.00010533,2]
[348133362,1736349049085,-1830.34,0.00010533,2]
[348133363,1736349049095,-421.71363152,0.00010533,2]
[348133364,1736349049105,-3855.11,0.00010533,2]
[348133365,1736349049115,-151.429746,0.00010533,2]
[348133366,1736349049125,-1812.63,0.00010533,2]
[348133367,1736349049135,-1014.64,0.00010533,2]
[348133368,1736349049146,-603.76,0.00010533,2]
[348133369,1736349049156,-151.0,0.00010533,2]
[348133370,1736349049166,-500.0,0.00010533,2]
[348133371,1736349049176,-932.35,0.00010533,2]
[348133372,1736349049186,-1549.08,0.00010533,2]
[348133373,1736349049196,-1007.78,0.00010533,2]
[348133374,1736349049206,-1568.67,0.00010533,2]
[348133375,1736349049217,-1014.64,0.00010534,2]
[348133376,1736349049231,-1438.04,0.00010534,2]
[348133377,1736349049240,-1344.71,0.00010534,2]
[348133378,1736349049250,-2949.85,0.00010534,2]
[348133379,1736349049261,-1660.4,0.00010534,2]
[348133380,1736349049271,-4059.98,0.00010534,2]
[348133381,1736349049282,-151.0,0.00010542,2]
[348133382,1736349049292,-2296.67,0.00010542,2]
[348133383,1736349049302,-1407.44,0.00010542,2]
[348133384,1736349049311,-944.42,0.00010542,2]
[348133385,1736349049322,-500.0,0.00010542,2]
[348133386,1736349049332,-1229.65,0.00010542,2]
[348133387,1736349049342,-3008.65,0.00010542,2]
[348133388,1736349049352,-1476.15,0.00010543,2]
[348133389,1736349049362,-763.26,0.00010543,2]
[348133390,1736349049372,-628.14,0.00010543,2]
[348133391,1736349049382,-610.14,0.00010543,2]
[348133392,1736349049392,-500.0,0.00010543,2]
[348133393,1736349049402,-915.32,0.00010543,2]
[348133394,1736349049412,-500.0,0.00010543,2]
[348133395,1736349049421,-722.85,0.00010543,2]
[348133396,1736349049431,-1592.84,0.00010543,2]
[348133397,1736349049441,-500.0,0.00010543,2]
[348133398,1736349049451,-848.12,0.00010543,2]
[348133399,1736349049461,-1659.06,0.00010543,2]
[348133400,1736349049473,-1489.01,0.00010543,2]
[348133401,1736349049483,-1000.0,0.00010543,2]
[348133402,1736349049493,-3191.21,0.00010543,2]
[348133403,1736349049503,-933.34,0.00010543,2]
[348133404,1736349049513,-7532.55,0.00010543,2]
[348133405,1736349049523,-500.0,0.00010543,2]
[348133406,1736349049533,-2156.58,0.00010543,2]
[348133407,1736349049543,-702.98,0.00010543,2]
[348133408,1736349049553,-2185.02,0.00010543,2]
[348133409,1736349049563,-568.99,0.00010543,2]
[348133410,1736349049574,-3720.21,0.00010543,2]
[348133411,1736349049584,-500.0,0.00010543,2]
[348133412,1736349049595,-822.66,0.00010543,2]
[348133413,1736349049608,-1170.63,0.00010543,2]
[348133414,1736349049618,-1467.53,0.00010543,2]
[348133415,1736349049628,-884.17,0.00010543,2]
[348133416,1736349049638,-500.0,0.00010554,2]
[348133417,1736349049647,-500.0,0.00010554,2]
[348133418,1736349049658,-150.0,0.00010554,2]
[348133419,1736349049668,-169.63713041,0.00010554,2]
[348133420,1736349049678,-500.0,0.00010554,2]
[348133421,1736349049688,-500.0,0.00010554,2]
[348133422,1736349049699,-150.0,0.00010554,2]
[348133423,1736349049709,-921.70682541,0.00010554,2]
[348133424,1736349049719,-500.0,0.00010573,2]
[348133425,1736349049734,-694.62929174,0.00010582,2]
[348133426,1736349049744,-500.0,0.00010582,2]
[348133427,1736349049755,-150.0,0.00010582,2]
[348133428,1736349049766,-500.0,0.00010582,2]
[348133429,1736349049777,-500.0,0.00010582,2]
[348133430,1736349049787,-244.7250172,0.00010582,2]
[348133431,1736349049797,-500.0,0.00010609,2]
[348133432,1736349049807,-150.0,0.00010609,2]
[348133433,1736349049818,-500.0,0.00010609,2]
[348133434,1736349049828,-802.25820764,0.00010609,2]
[348133435,1736349049839,-500.0,0.00010637,2]
[348133436,1736349049849,-150.0,0.00010637,2]
[348133437,1736349049859,-500.0,0.00010637,2]
[348133438,1736349049870,-500.0,0.00010664,2]
[348133439,1736349049880,-212.37136905,0.00010664,2]
[348133440,1736349049891,-921.88123276,0.00010664,2]
[348133441,1736349049901,-426.64448109,0.00010675,2]
[348133442,1736349049913,-500.0,0.00010691,2]
[348133443,1736349049923,-642.57,0.00010693,2]
[348133444,1736349049933,-1399.42,0.00010693,2]
[348133445,1736349049944,-2084.31,0.00010693,2]
[348133446,1736349049954,-1385.09,0.00010693,2]
[348133447,1736349049965,-1093.48,0.00010693,2]
[348133448,1736349049980,-1097.572277,0.00010693,2]
[348133449,1736349049991,-1319.919364,0.00010693,2]
[348133450,1736349050001,-3771.05,0.00010693,2]
[348133451,1736349050011,-204.13309621,0.000107,2]
[348133452,1736349050021,-500.0,0.00010704,2]
[348133453,1736349050031,-500.0,0.00010704,2]
[348133454,1736349050042,-500.0,0.00010705,2]
[348133455,1736349050052,-1910.15,0.00010705,2]
[348133456,1736349050063,-577.27,0.00010705,2]
[348133457,1736349050119,-2017.44,0.00010705,2]
[348133458,1736349050129,-4797.45,0.00010705,2]
[348133459,1736349050139,-500.0,0.00010705,2]
[348133460,1736349050148,-867.59,0.00010705,2]
[348133461,1736349050158,-824.65,0.00010705,2]
[348133462,1736349050167,-1139.85,0.00010705,2]
[348133463,1736349050176,-1719.33,0.00010705,2]
[348133464,1736349050185,-635.6,0.00010705,2]
[348133465,1736349050195,-500.0,0.00010705,2]
[348133466,1736349050205,-1933.87,0.00010705,2]
[348133467,1736349050215,-3085.15,0.00010705,2]
[348133468,1736349050228,-963.79,0.00010705,2]
[348133469,1736349050239,-500.0,0.00010705,2]
[348133470,1736349050249,-1516.5,0.00010705,2]
[348133471,1736349050259,-592.06,0.00010705,2]
[348133472,1736349050270,-1435.2,0.00010705,2]
[348133473,1736349050280,-1121.6,0.00010705,2]
[348133474,1736349050290,-622.93,0.00010705,2]
[348133475,1736349050300,-816.26,0.00010705,2]
[348133476,1736349050309,-2446.41,0.00010705,2]
[348133477,1736349050320,-1353.2,0.00010705,2]
[348133478,1736349050329,-966.64,0.00010705,2]
[348133479,1736349050338,-500.0,0.00010705,2]
[348133480,1736349050347,-500.0,0.00010705,2]
[348133481,1736349050357,-1581.87,0.00010705,2]
[348133482,1736349050366,-500.0,0.00010706,2]
[348133483,1736349050375,-500.0,0.00010706,2]
[348133484,1736349050385,-500.0,0.00010706,2]
[348133485,1736349050394,-545.82,0.00010706,2]
[348133486,1736349050404,-500.0,0.00010706,2]
[348133487,1736349050413,-500.0,0.00010706,2]
[348133488,1736349050423,-511.28,0.00010706,2]
[348133489,1736349050432,-500.0,0.00010706,2]
[348133490,1736349050441,-500.0,0.00010706,2]
[348133491,1736349050450,-500.0,0.00010706,2]
[348133492,1736349050460,-500.0,0.00010706,2]
[348133493,1736349050470,-1432.7,0.00010706,2]
[348133494,1736349050483,-527.56,0.00010706,2]
[348133495,1736349050492,-207.8623525,0.00010706,2]
[348133496,1736349050501,-500.0,0.00010706,2]
[348133497,1736349050510,-500.0,0.00010706,2]
[348133498,1736349050519,-500.0,0.00010706,2]
[348133499,1736349050528,-448.33,0.00010706,2]
[348133500,1736349050537,-1129.83,0.00010706,2]
[348133501,1736349050546,-710.52,0.00010706,2]
[348133502,1736349050556,-500.0,0.00010706,2]
[348133503,1736349050565,-577.49,0.00010706,2]
[348133504,1736349050574,-735.73,0.00010706,2]
[348133505,1736349050582,-500.0,0.00010706,2]
[348133506,1736349050594,-500.0,0.00010706,2]
[348133507,1736349050603,-426.80635283,0.00010706,2]
[348133508,1736349050613,-788.75,0.00010706,2]
[348133509,1736349050623,-500.0,0.00010706,2]
[348133510,1736349050632,-500.0,0.00010706,2]
[348133511,1736349050643,-651.89,0.00010706,2]
[348133512,1736349050652,-500.0,0.00010706,2]
[348133513,1736349050663,-500.0,0.00010706,2]
[348133514,1736349050672,-572.85,0.00010706,2]
[348133515,1736349050682,-555.85,0.00010706,2]
[348133516,1736349050691,-500.0,0.00010706,2]
[348133517,1736349050701,-500.0,0.00010706,2]
[348133518,1736349050710,-500.0,0.00010706,2]
[348133519,1736349050720,-500.0,0.00010706,2]
[348133520,1736349050732,-500.0,0.00010706,2]
[348133521,1736349050741,-500.0,0.00010706,2]
[348133522,1736349050751,-500.0,0.00010706,2]
[348133523,1736349050762,-535.98,0.00010706,2]
[348133524,1736349050771,-500.0,0.00010706,2]
[348133525,1736349050780,-500.0,0.00010706,2]
[348133526,1736349050789,-500.0,0.00010706,2]
[348133527,1736349050799,-751.03,0.00010706,2]
[348133528,1736349050808,-500.0,0.00010706,2]
[348133529,1736349050818,-500.0,0.00010706,2]
[348133530,1736349050827,-500.0,0.00010706,2]
[348133531,1736349050836,-500.0,0.00010706,2]
[348133532,1736349050846,-714.42,0.00010706,2]
[348133533,1736349050856,-500.0,0.00010706,2]
[348133534,1736349050866,-263.13582374,0.00010706,2]
[348133535,1736349050875,-500.0,0.00010706,2]
[348133536,1736349050885,-500.0,0.00010706,2]
[348133537,1736349050895,-500.0,0.00010706,2]
[348133538,1736349050904,-1917.71,0.00010706,2]
[348133539,1736349050914,-500.0,0.00010706,2]
[348133540,1736349050925,-3686.07,0.00010706,2]
[348133541,1736349050935,-500.0,0.00010706,2]
[348133542,1736349050944,-500.0,0.00010706,2]
[348133543,1736349050954,-500.0,0.00010706,2]
[348133544,1736349050963,-500.0,0.00010706,2]
[348133545,1736349050974,-500.0,0.00010706,2]
[348133546,1736349050983,-3390.06,0.00010706,2]
[348133547,1736349050993,-500.0,0.00010706,2]
[348133548,1736349051003,-500.0,0.00010706,2]
[348133549,1736349051013,-2650.65,0.00010706,2]
[348133550,1736349051023,-902.92,0.00010706,2]
[348133551,1736349051032,-517.67,0.00010706,2]
[348133552,1736349051042,-500.0,0.00010706,2]
[348133553,1736349051051,-500.0,0.00010706,2]
[348133554,1736349051061,-3156.02,0.00010706,2]
[348133555,1736349051070,-500.0,0.00010706,2]
[348133556,1736349051079,-500.0,0.00010706,2]
[348133557,1736349051088,-500.0,0.00010706,2]
[348133558,1736349051097,-500.0,0.00010706,2]
[348133559,1736349051107,-642.86,0.00010706,2]
[348133560,1736349051117,-500.0,0.00010706,2]
[348133561,1736349051126,-500.0,0.00010706,2]
[348133562,1736349051135,-500.0,0.00010706,2]
[348133563,1736349051145,-709.58,0.00010706,2]
[348133564,1736349051154,-503.10840816,0.00010706,7]
[348133565,1736349051163,-500.0,0.0001071,2]
[348133566,1736349051172,-500.0,0.00010719,2]
[348133567,1736349051182,-158.3,0.00010739,2]
[348133568,1736349051191,-500.0,0.00010746,2]
[348133569,1736349051200,-3000.0,0.0001075,2]
[348133570,1736349051210,-151.88,0.0001076,2]
[348133571,1736349051220,-255.0,0.00010766,2]
[348133572,1736349051232,-500.0,0.00010774,2]
[348133573,1736349051241,-982.42923683,0.000108,2]
[348133574,1736349051251,-606.92237977,0.00010801,2]
[348133575,1736349051260,-500.0,0.00010806,2]
[348133576,1736349051270,-500.0,0.00010806,2]
[348133577,1736349051280,-500.0,0.00010806,2]
[348133578,1736349051289,-500.0,0.00010806,2]
[348133579,1736349051299,-500.0,0.00010806,2]
[348133580,1736349051308,-500.0,0.00010806,2]
[348133581,1736349051317,-500.0,0.00010806,2]
[348133582,1736349051327,-500.0,0.00010806,2]
[348133583,1736349051336,-368.33395257,0.00010806,2]
[348133584,1736349051345,-500.0,0.00010806,2]
[348133585,1736349051354,-638.94,0.00010806,2]
[348133586,1736349051364,-775.08,0.00010806,2]
[348133587,1736349051373,-500.0,0.00010806,2]
[348133588,1736349051383,-402.14839257,0.00010806,2]
[348133589,1736349051393,-224.93,0.00010806,2]
[348133590,1736349051402,-873.19,0.00010806,2]
[348133591,1736349051411,-500.0,0.00010806,2]
[348133592,1736349051421,-598.51,0.00010806,2]
[348133593,1736349051431,-500.0,0.00010806,2]
[348133594,1736349051441,-777.0,0.00010806,2]
[348133595,1736349051450,-851.02,0.00010806,2]
[348133596,1736349051459,-500.0,0.00010806,2]
[348133597,1736349051469,-500.0,0.00010806,2]
[348133598,1736349051481,-500.0,0.00010806,2]
[348133599,1736349051490,-500.0,0.00010806,2]
[348133600,1736349051499,-500.0,0.00010806,2]
[348133601,1736349051508,-500.0,0.00010806,2]
[348133602,1736349051517,-630.25,0.00010806,2]
[348133603,1736349051527,-500.0,0.00010806,2]
[348133604,1736349051536,-500.0,0.00010806,2]
[348133605,1736349051545,-616.38,0.00010806,2]
[348133606,1736349051555,-151.0,0.00010806,2]
[348133607,1736349051564,-500.0,0.00010806,2]
[348133608,1736349051574,-985.65,0.00010806,2]
[348133609,1736349051583,-500.0,0.00010806,2]
[348133610,1736349051594,-151.0,0.00010806,2]
[348133611,1736349051604,-744.19,0.00010806,2]
[348133612,1736349051616,-811.38,0.00010806,2]
[348133613,1736349051625,-500.0,0.00010806,2]
[348133614,1736349051635,-500.0,0.00010806,2]
[348133615,1736349051644,-500.0,0.00010807,2]
[348133616,1736349051654,-500.0,0.00010807,2]
[348133617,1736349051664,-2633.32,0.00010807,2]
[348133618,1736349051673,-500.0,0.00010807,2]
[348133619,1736349051684,-500.0,0.00010807,2]
[348133620,1736349051694,-1212.18,0.00010807,2]
[348133621,1736349051703,-4771.31,0.00010807,2]
[348133622,1736349051713,-3890.61,0.00010807,2]
[348133623,1736349051724,-500.0,0.00010807,2]
[348133624,1736349051735,-500.0,0.00010807,2]
[348133625,1736349051744,-1830.34,0.00010807,2]
[348133626,1736349051755,-3855.11,0.00010807,2]
[348133627,1736349051766,-1812.63,0.00010807,2]
[348133628,1736349051778,-1014.64,0.00010807,2]
[348133629,1736349051789,-603.76,0.00010807,2]
[348133630,1736349051799,-500.0,0.00010807,2]
[348133631,1736349051810,-932.35,0.00010807,2]
[348133632,1736349051821,-1549.08,0.00010807,2]
[348133633,1736349051831,-1007.78,0.00010807,2]
[348133634,1736349051842,-1568.67,0.00010807,2]
[348133635,1736349051851,-1014.64,0.00010808,2]
[348133636,1736349051860,-1438.04,0.00010808,2]
[348133637,1736349051869,-1344.71,0.00010808,2]
[348133638,1736349051878,-2949.85,0.00010808,2]
[348133639,1736349051889,-1660.4,0.00010808,2]
[348133640,1736349051898,-4059.98,0.00010808,2]
[348133641,1736349051908,-2296.67,0.00010816,2]
[348133642,1736349051917,-1407.44,0.00010816,2]
[348133643,1736349051926,-944.42,0.00010816,2]
[348133644,1736349051936,-500.0,0.00010816,2]
[348133645,1736349051945,-1229.65,0.00010816,2]
[348133646,1736349051954,-3008.65,0.00010816,2]
[348133647,1736349051964,-1476.15,0.00010817,2]
[348133648,1736349051975,-763.26,0.00010817,2]
[348133649,1736349051984,-628.14,0.00010817,2]
[348133650,1736349051994,-610.14,0.00010817,2]
[348133651,1736349052003,-500.0,0.00010817,2]
[348133652,1736349052013,-915.32,0.00010817,2]
[348133653,1736349052022,-500.0,0.00010817,2]
[348133654,1736349052032,-722.85,0.00010817,2]
[348133655,1736349052042,-1592.84,0.00010817,2]
[348133656,1736349052052,-500.0,0.00010817,2]
[348133657,1736349052061,-848.12,0.00010817,2]
[348133658,1736349052071,-1659.06,0.00010817,2]
[348133659,1736349052081,-1489.01,0.00010817,2]
[348133660,1736349052090,-1000.0,0.00010817,2]
[348133661,1736349052100,-3191.21,0.00010817,2]
[348133662,1736349052109,-933.34,0.00010817,2]
[348133663,1736349052119,-7532.55,0.00010817,2]
[348133664,1736349052128,-500.0,0.00010817,2]
[348133665,1736349052138,-2156.58,0.00010817,2]
[348133666,1736349052147,-702.98,0.00010817,2]
[348133667,1736349052157,-2185.02,0.00010817,2]
[348133668,1736349052166,-568.99,0.00010817,2]
[348133669,1736349052175,-3720.21,0.00010817,2]
[348133670,1736349052185,-500.0,0.00010817,2]
[348133671,1736349052195,-822.66,0.00010817,2]
[348133672,1736349052204,-1170.63,0.00010817,2]
[348133673,1736349052214,-1467.53,0.00010817,2]
[348133674,1736349052225,-884.17,0.00010817,2]
[348133675,1736349052234,-1038.02834904,0.00010821,2]
[348133676,1736349052244,-1000.0,0.00010821,2]
[348133677,1736349052253,-719.07366358,0.00010824,2]
[348133678,1736349052263,-500.0,0.00010847,2]
[348133679,1736349052274,-264.37757849,0.00010865,2]
[348133680,1736349052283,-426.64448109,0.00010899,2]
[348133681,1736349052293,-205.60199953,0.000109,2]
[348133682,1736349052302,-204.13309621,0.000109,2]
[348133683,1736349052314,-150.0,0.00010958,2]
[348133684,1736349052324,-1334.39,0.00010958,2]
[348133685,1736349052334,-151.0,0.00010958,2]
[348133686,1736349052343,-151.0,0.00010958,2]
[348133687,1736349052353,-7500.0,0.00010958,2]
[348133688,1736349052363,-7500.0,0.00010958,2]
[348133689,1736349052372,-7500.0,0.00010958,2]
[348133690,1736349052382,-7500.0,0.00010958,2]
[348133691,1736349052393,-7500.0,0.00010958,2]
[348133692,1736349052402,-7500.0,0.00010958,2]
[348133693,1736349052412,-7500.0,0.00010958,2]
[348133694,1736349052422,-7500.0,0.00010958,2]
[348133695,1736349052431,-7500.0,0.00010958,2]
[348133696,1736349052441,-7500.0,0.00010958,2]
[348133697,1736349052451,-7500.0,0.00010958,2]
[348133698,1736349052461,-7500.0,0.00010958,2]
[348133699,1736349052470,-7500.0,0.00010958,2]
[348133700,1736349052482,-7500.0,0.00010958,2]
[348133701,1736349052492,-7500.0,0.00010958,2]
[348133702,1736349052502,-7500.0,0.00010958,2]
[348133703,1736349052513,-7500.0,0.00010958,2]
[348133704,1736349052523,-7500.0,0.00010958,2]
[348133705,1736349052532,-500.0,0.00010959,2]
[348133706,1736349052543,-2000.0,0.00010959,2]
[348133707,1736349052553,-500.0,0.00010959,2]
[348133708,1736349052563,-151.0,0.00010959,2]
[348133709,1736349052573,-151.0,0.00010959,2]
[348133710,1736349052583,-150.0,0.00010959,2]
[348133711,1736349052596,-3936.43,0.00010959,2]
[348133712,1736349052605,-681.17,0.00010962,2]
[348133713,1736349052615,-642.57,0.00010967,2]
[348133714,1736349052625,-1399.42,0.00010967,2]
[348133715,1736349052636,-2084.31,0.00010967,2]
[348133716,1736349052646,-1385.09,0.00010967,2]
[348133717,1736349052655,-1093.48,0.00010967,2]
[348133718,1736349052667,-1097.572277,0.00010967,2]
[348133719,1736349052676,-1319.919364,0.00010967,2]
[348133720,1736349052686,-3771.05,0.00010967,2]
[348133721,1736349052696,-500.0,0.00010978,2]
[348133722,1736349052706,-500.0,0.00010978,2]
[348133723,1736349052716,-500.0,0.00010979,2]
[348133724,1736349052727,-1910.15,0.00010979,2]
[348133725,1736349052736,-577.27,0.00010979,2]
[348133726,1736349052746,-2017.44,0.00010979,2]
[348133727,1736349052758,-4797.45,0.00010979,2]
[348133728,1736349052768,-500.0,0.00010979,2]
[348133729,1736349052778,-867.59,0.00010979,2]
[348133730,1736349052788,-824.65,0.00010979,2]
[348133731,1736349052797,-1139.85,0.00010979,2]
[348133732,1736349052807,-1719.33,0.00010979,2]
[348133733,1736349052817,-635.6,0.00010979,2]
[348133734,1736349052827,-500.0,0.00010979,2]
[348133735,1736349052838,-1933.87,0.00010979,2]
[348133736,1736349052848,-3085.15,0.00010979,2]
[348133737,1736349052858,-963.79,0.00010979,2]
[348133738,1736349052867,-500.0,0.00010979,2]
[348133739,1736349052877,-1516.5,0.00010979,2]
[348133740,1736349052887,-592.06,0.00010979,2]
[348133741,1736349052897,-1435.2,0.00010979,2]
[348133742,1736349052907,-666.0,0.00010979,2]
[348133743,1736349052918,-1121.6,0.00010979,2]
[348133744,1736349052929,-622.93,0.00010979,2]
[348133745,1736349052939,-816.26,0.00010979,2]
[348133746,1736349052951,-2446.41,0.00010979,2]
[348133747,1736349052962,-1353.2,0.00010979,2]
[348133748,1736349052972,-966.64,0.00010979,2]
[348133749,1736349052985,-500.0,0.00010979,2]
[348133750,1736349052995,-500.0,0.00010979,2]
[348133751,1736349053005,-1581.87,0.00010979,2]
[348133752,1736349053015,-500.0,0.0001098,2]
[348133753,1736349053026,-321.23769905,0.0001098,2]
[348133754,1736349053036,-500.0,0.0001098,2]
[348133755,1736349053046,-545.82,0.0001098,2]
[348133756,1736349053058,-500.0,0.0001098,2]
[348133757,1736349053068,-500.0,0.0001098,2]
[348133758,1736349053078,-511.28,0.0001098,2]
[348133759,1736349053087,-500.0,0.0001098,2]
[348133760,1736349053097,-500.0,0.0001098,2]
[348133761,1736349053107,-500.0,0.0001098,2]
[348133762,1736349053117,-500.0,0.0001098,2]
[348133763,1736349053127,-1432.7,0.0001098,2]
[348133764,1736349053137,-527.56,0.0001098,2]
[348133765,1736349053148,-500.0,0.0001098,2]
[348133766,1736349053158,-500.0,0.0001098,2]
[348133767,1736349053168,-500.0,0.0001098,2]
[348133768,1736349053178,-1129.83,0.0001098,2]
[348133769,1736349053188,-710.52,0.0001098,2]
[348133770,1736349053198,-500.0,0.0001098,2]
[348133771,1736349053208,-577.49,0.0001098,2]
[348133772,1736349053220,-735.73,0.0001098,2]
[348133773,1736349053237,-500.0,0.0001098,2]
[348133774,1736349053248,-500.0,0.0001098,2]
[348133775,1736349053259,-788.75,0.0001098,2]
[348133776,1736349053271,-500.0,0.0001098,2]
[348133777,1736349053281,-500.0,0.0001098,2]
[348133778,1736349053292,-651.89,0.0001098,2]
[348133779,1736349053303,-500.0,0.0001098,2]
[348133780,1736349053315,-500.0,0.0001098,2]
[348133781,1736349053326,-572.85,0.0001098,2]
[348133782,1736349053336,-555.85,0.0001098,2]
[348133783,1736349053346,-500.0,0.0001098,2]
[348133784,1736349053357,-500.0,0.0001098,2]
[348133785,1736349053367,-500.0,0.0001098,2]
[348133786,1736349053377,-500.0,0.0001098,2]
[348133787,1736349053387,-500.0,0.0001098,2]
[348133788,1736349053397,-500.0,0.0001098,2]
[348133789,1736349053407,-500.0,0.0001098,2]
[348133790,1736349053417,-535.98,0.0001098,2]
[348133791,1736349053426,-500.0,0.0001098,2]
[348133792,1736349053436,-500.0,0.0001098,2]
[348133793,1736349053446,-500.0,0.0001098,2]
[348133794,1736349053456,-751.03,0.0001098,2]